bitfinex-derivatives/quotes_ETHF0:USTF0_20260226
["timestamp","ask_amount","ask_price","bid_price","bid_amount"]
[1772067822262,0.0037816,2059.5,2058.4,1.96616659]
[1772067822571,1.86550942,2060.0,2058.8,1.96175887]
[1772067822771,1.86550942,2060.0,2059.1,1.96175887]
[1772067822967,24.66903509,2060.2,2059.1,1.96175887]
[1772067823471,0.00526162,2060.2,2059.4,1.96175887]
[1772067825364,1.86550942,2060.7,2059.6,1.98631631]
[1772067825567,1.86550942,2061.1,2059.7,1.96175887]
[1772067825765,1.86550942,2060.7,2059.7,1.96175887]
[1772067825967,1.86550942,2061.0,2059.7,1.96175887]
[1772067826572,1.87143699,2061.0,2059.7,1.96175887]
[1772067826964,0.00592757,2061.0,2059.9,1.96175887]
[1772067827169,1.87143699,2061.0,2059.9,1.96557316]
[1772067828475,0.00592757,2061.0,2059.9,1.96557316]
[1772067829576,1.87143699,2061.0,2059.9,1.96557316]
[1772067829875,1.86550942,2060.8,2059.9,1.96557316]
[1772067832275,1.95394029,2061.0,2059.9,1.96557316]
[1772067832675,0.00592757,2061.0,2060.1,1.80968328]
[1772067832975,0.00592757,2061.0,2060.0,8.34531631]
[1772067832976,1.94801272,2061.8,2060.7,1.80968328]
[1772067833175,1.94801272,2061.8,2060.8,1.80968328]
[1772067833773,1.95334969,2061.8,2060.8,1.80968328]
[1772067835276,0.00533697,2061.8,2060.8,1.80968328]
[1772067835470,0.24239,2062.5,2060.8,1.80968328]
[1772067835471,1.94801272,2062.2,2060.8,1.80968328]
[1772067835680,1.94801272,2062.4,2061.0,1.80968328]
[1772067836277,1.94801272,2062.4,2061.0,2.05224328]
[1772067836472,0.00398701,2062.4,2061.2,2.18617367]
[1772067836878,0.00398701,2062.4,2061.4,1.94363367]
[1772067837076,0.00398701,2062.4,2061.6,1.94363367]
[1772067837274,2.06193002,2063.1,2061.6,1.94363367]
[1772067837479,1.81960002,2063.1,2061.6,1.94363367]
[1772067837674,1.81960002,2063.4,2061.9,1.94363367]
[1772067837873,1.81960002,2063.4,2062.0,1.94363367]
[1772067838079,1.81960002,2063.4,2062.1,1.94363367]
[1772067838275,1.82313469,2063.4,2062.3,1.94363367]
[1772067838881,1.82313469,2063.4,2062.2,8.30263367]
[1772067839484,1.81960002,2063.1,2061.9,1.94363367]
[1772067839679,1.81960002,2062.9,2061.7,8.30263367]
[1772067839984,1.81960002,2062.9,2061.8,1.94363367]
[1772067840183,1.81960002,2062.7,2061.6,1.94363367]
[1772067841883,1.81960002,2062.6,2061.4,1.94871295]
[1772067842592,1.81960002,2062.4,2061.4,1.94871295]
[1772067842885,1.81960002,2062.4,2061.4,0.00507928]
[1772067843088,1.81960002,2062.4,2060.7,1.94363367]
[1772067843089,0.24246,2061.9,2060.7,1.94363367]
[1772067843288,1.81960002,2061.8,2060.7,1.94363367]
[1772067844089,1.82477538,2061.8,2060.7,1.94838102]
[1772067845589,0.00517536,2061.8,2060.7,1.94838102]
[1772067846997,1.81960002,2062.5,2061.0,0.24256]
[1772067847200,8.59572414,2063.1,2060.8,5.41053002]
[1772067847201,1.81960002,2063.0,2061.4,1.94363367]
[1772067847496,1.81960002,2063.0,2061.6,1.94363367]
[1772067848099,1.82433037,2063.0,2061.6,1.94363367]
[1772067848299,0.00473035,2063.0,2061.8,1.94363367]
[1772067848506,0.00473035,2063.0,2062.0,1.94363367]
[1772067850003,1.82433037,2063.0,2062.0,1.94363367]
[1772067850507,0.00473035,2063.0,2062.0,1.94363367]
[1772067850701,1.82433037,2063.0,2061.4,1.94363367]
[1772067850900,1.81960002,2062.8,2061.4,1.94363367]
[1772067852507,1.81960002,2062.6,2061.4,1.94363367]
[1772067853810,1.81960002,2062.9,2061.8,1.94363367]
[1772067855705,0.00473035,2063.0,2062.0,1.94363367]
[1772067856003,0.00473035,2063.0,2062.2,1.94363367]
[1772067856207,0.00473035,2063.0,2062.2,1.94745839]
[1772067857508,1.82433037,2063.0,2062.2,1.94745839]
[1772067858006,1.81960002,2062.8,2061.7,1.94363367]
[1772067859106,1.81960002,2062.8,2061.7,1.94708557]
[1772067863013,2.63917449,2063.0,2061.7,1.94708557]
[1772067863014,1.81960002,2062.6,2061.7,0.0034519]
[1772067863408,1.81960002,2062.6,2061.7,1.94708557]
[1772067864806,1.8186671,2062.8,2061.7,1.94708557]
[1772067865409,1.8186671,2062.8,2061.7,2.18955557]
[1772067865615,1.82433037,2063.0,2061.7,2.18955557]
[1772067866013,0.00473035,2063.0,2061.7,2.18955557]
[1772067866413,0.00473035,2063.0,2061.9,2.07345759]
[1772067868515,0.00473035,2063.0,2062.1,1.83099759]
[1772067869824,1.80438886,2063.6,2062.3,1.83099759]
[1772067870314,1.80438886,2063.8,2062.5,1.83099759]
[1772067870520,1.80438886,2063.6,2062.6,8.18499759]
[1772067870711,1.8087365,2063.6,2062.6,8.18499759]
[1772067870912,1.8087365,2063.6,2062.4,1.83099759]
[1772067871120,1.80438886,2063.4,2062.4,1.83099759]
[1772067872113,1.78797181,2063.6,2062.4,1.83099759]
[1772067872815,0.00434764,2063.6,2062.6,1.83512456]
[1772067873023,0.00434764,2063.6,2062.8,1.83512456]
[1772067873824,0.00434764,2063.6,2063.0,1.83512456]
[1772067874022,1.78362417,2064.0,2063.0,1.83512456]
[1772067874817,5.9391104,2064.6,2062.9,6.353]
[1772067874818,1.78362417,2064.7,2063.2,1.83512456]
[1772067875019,1.7875794,2064.7,2063.2,1.84106392]
[1772067875214,1.7875794,2064.7,2063.3,0.24229]
[1772067875419,0.00395523,2064.7,2063.8,1.83512456]
[1772067875623,0.00395523,2064.7,2064.0,1.83512456]
[1772067875926,1.78362417,2065.4,2064.2,1.83512456]
[1772067876121,1.78362417,2065.7,2064.4,1.83512456]
[1772067876318,1.78362417,2065.7,2064.6,1.83512456]
[1772067876515,1.78362417,2066.1,2064.6,1.83512456]
[1772067876715,1.78362417,2065.9,2064.4,1.83512456]
[1772067876915,1.78362417,2065.5,2064.3,6.352]
[1772067877120,1.78362417,2065.3,2064.1,1.83512456]
[1772067879618,1.78362417,2065.3,2063.9,8.18712456]
[1772067879821,1.78362417,2065.3,2064.0,1.83512456]
[1772067880618,1.78362417,2065.1,2063.8,1.83512456]
[1772067881226,1.78362417,2064.9,2063.8,1.83512456]
[1772067883827,1.78362417,2064.9,2063.2,0.00593936]
[1772067883828,1.78362417,2064.3,2063.2,0.00593936]
[1772067884027,1.78724788,2064.3,2063.2,0.00593936]
[1772067884320,1.78362417,2064.1,2063.2,0.00593936]
[1772067885025,1.78362417,2064.1,2063.2,1.84106392]
[1772067885827,1.78724788,2064.3,2063.2,1.84106392]
[1772067887326,0.00362371,2064.3,2063.2,1.84106392]
[1772067888332,0.00362371,2064.3,2063.4,1.83512456]
[1772067888736,0.00362371,2064.3,2063.5,1.83512456]
[1772067890634,1.78724788,2064.3,2063.4,6.349]
[1772067890832,1.78724788,2064.3,2063.4,1.83512456]
[1772067894440,1.78724788,2064.3,2063.2,0.00593936]
[1772067894842,1.78362417,2064.1,2063.2,0.00593936]
[1772067898440,1.78362417,2064.1,2063.2,1.87010518]
[1772067899537,1.89266852,2064.3,2063.2,1.87010518]
[1772067899737,1.89266852,2064.3,2063.3,1.86416582]
[1772067900335,0.00362371,2064.3,2063.3,1.86416582]
[1772067900736,2.13484852,2064.3,2063.3,1.86416582]
[1772067901338,0.00362371,2064.3,2063.3,2.10645582]
[1772067902156,0.00362371,2064.3,2063.5,1.86416582]
[1772067903551,1.89266852,2064.3,2063.5,1.86416582]
[1772067903750,1.89266852,2064.3,2063.3,1.86416582]
[1772067904355,1.88904481,2064.1,2063.2,0.00593936]
[1772067904655,1.88904481,2064.1,2063.2,1.87010518]
[1772067905049,1.89266852,2064.3,2063.4,1.86416582]
[1772067905653,1.88904481,2064.8,2063.4,1.86416582]
[1772067905852,1.88904481,2064.6,2063.5,5.59933629]
[1772067906054,7.92674605,2065.0,2063.4,1.86416582]
[1772067906055,1.88904481,2064.4,2063.4,1.86416582]
[1772067906249,1.88904481,2064.2,2063.2,1.87010518]
[1772067906847,1.89340194,2064.2,2063.2,1.87010518]
[1772067909152,0.00435713,2064.2,2063.2,1.87010518]
[1772067909547,0.00435713,2064.2,2063.3,1.86416582]
[1772067909748,0.00435713,2064.2,2063.5,1.86416582]
[1772067909953,1.89340194,2064.2,2063.3,1.86416582]
[1772067910259,1.89340194,2064.2,2063.2,6.35493936]
[1772067910654,1.89340194,2064.2,2063.2,8.21910518]
[1772067911056,1.89340194,2064.2,2063.2,8.29410518]
[1772067911453,1.89340194,2064.2,2063.3,1.86416582]
[1772067913455,1.89340194,2064.2,2063.2,6.42993936]
[1772067913661,1.88904481,2064.0,2063.2,0.08093936]
[1772067913960,1.88904481,2064.0,2063.2,0.00593936]
[1772067914352,1.88904481,2064.0,2062.8,7.61538387]
[1772067914557,1.88904481,2063.7,2062.5,1.86416582]
[1772067914858,1.88904481,2063.5,2062.3,1.86416582]
[1772067915053,1.88904481,2063.3,2062.3,1.86416582]
[1772067915553,1.88904481,2063.3,2062.3,1.8697542]
[1772067916863,1.88904481,2063.1,2062.3,0.00558838]
[1772067917262,1.88904481,2063.1,2061.9,1.86416582]
[1772067917657,1.88904481,2062.9,2061.7,6.349]
[1772067917961,1.88904481,2062.9,2061.7,8.21316582]
[1772067918363,1.88904481,2062.9,2061.7,8.21900151]
[1772067918759,1.88904481,2062.9,2061.7,6.35483569]
[1772067919356,1.88904481,2062.9,2061.7,0.00583569]
[1772067919662,2.21341605,2063.0,2061.7,0.00583569]
[1772067919663,1.88904481,2062.7,2061.7,0.00583569]
[1772067919864,1.88904481,2062.5,2061.7,0.00583569]
[1772067920164,1.89243764,2062.7,2061.7,1.87000151]
[1772067922268,0.00339283,2062.7,2061.7,2.11248151]
[1772067925764,1.72104859,2062.7,2061.7,2.11248151]
[1772067929865,1.71765576,2063.1,2061.9,4.0851561]
[1772067930072,1.71765576,2063.3,2062.3,1.86832853]
[1772067931170,1.72375516,2063.3,2062.3,1.86832853]
[1772067931365,1.72375516,2063.3,2062.3,1.94332853]
[1772067931570,0.0060994,2063.3,2062.6,1.86832853]
[1772067931769,1.89630813,2063.3,2062.6,1.86832853]
[1772067933267,1.89630813,2063.3,2062.5,1.80891018]
[1772067936170,0.0060994,2063.3,2062.5,3.78327775]
[1772067936374,0.0060994,2063.3,2062.6,1.80891018]
[1772067937274,1.89020873,2063.7,2062.6,1.80891018]
[1772067937476,1.89020873,2063.7,2062.7,0.075]
[1772067938271,1.89020873,2063.5,2062.7,0.075]
[1772067939273,1.89020873,2063.5,2062.7,1.88391018]
[1772067941377,1.89020873,2063.5,2062.7,0.075]
[1772067942575,1.89020873,2063.5,2062.2,1.80891018]
[1772067942776,1.89020873,2063.3,2062.2,1.80891018]
[1772067946879,1.89020873,2063.1,2062.0,1.80891018]
[1772067949779,1.89020873,2063.1,2062.3,1.80891018]
[1772067950982,1.89020873,2063.1,2062.1,1.80891018]
[1772067951785,1.89020873,2063.1,2062.2,1.80891018]
[1772067958289,1.89020873,2063.1,2062.3,1.74990802]
[1772067958488,1.89020873,2063.1,2062.5,1.74990802]
[1772067958892,1.89020873,2063.1,2062.3,1.74990802]
[1772067960390,1.89020873,2063.1,2062.1,7.61538387]
[1772067960596,1.80636479,2062.7,2061.8,7.61538387]
[1772067960794,1.80636479,2062.7,2061.7,1.75574371]
[1772067961793,1.80636479,2062.5,2061.7,0.00583569]
[1772067962198,1.80636479,2062.3,2061.3,1.74990802]
[1772067962695,1.80636479,2062.3,2060.8,9.98420506]
[1772067962696,1.80636479,2061.9,2060.6,13.96738387]
[1772067962901,1.80636479,2061.7,2060.7,1.74990802]
[1772067963305,1.81011258,2061.7,2060.9,1.74990802]
[1772067966905,0.00374779,2061.7,2060.9,1.74990802]
[1772067969009,1.80636479,2062.0,2061.2,1.74990802]
[1772067969212,1.80636479,2062.0,2061.4,1.74990802]
[1772067969510,1.80636479,2062.5,2061.4,1.74990802]
[1772067969908,1.81082271,2062.5,2061.5,1.74990802]
[1772067970909,1.80636479,2062.3,2061.3,8.10390802]
[1772067971109,1.80636479,2062.3,2061.3,6.354]
[1772067971306,1.80636479,2062.3,2060.9,8.10390802]
[1772067971307,1.80636479,2062.1,2060.9,8.10390802]
[1772067971710,1.81082271,2062.5,2061.9,1.74990802]
[1772067972014,1.81082271,2062.5,2061.7,6.354]
[1772067972313,1.81082271,2062.5,2061.5,1.74990802]
[1772067973508,1.81082271,2062.5,2061.2,1.97436757]
[1772067973714,1.80636479,2062.4,2061.2,1.74990802]
[1772067975613,2.04877479,2062.4,2061.2,1.74990802]
[1772067975812,2.04877479,2062.4,2060.9,1.74990802]
[1772067976116,1.80636479,2062.1,2060.9,1.74990802]
[1772067980116,1.80636479,2062.3,2061.2,1.74990802]
[1772067980419,1.80636479,2062.3,2061.5,1.74990802]
[1772067980619,0.00445792,2062.5,2061.8,1.74990802]
[1772067981023,1.81082271,2062.5,2061.6,1.74990802]
[1772067982620,0.00445792,2062.5,2061.7,1.74990802]
[1772067982820,1.81082271,2062.5,2061.7,1.74990802]
[1772067983022,0.00445792,2062.5,2061.7,1.74990802]
[1772067983918,1.81082271,2062.5,2061.7,1.74990802]
[1772067985825,1.81082271,2062.5,2061.2,1.63622693]
[1772067986423,1.81082271,2062.5,2061.4,1.63622693]
[1772067991028,1.71017271,2062.3,2061.4,1.63622693]
[1772067991234,1.95259271,2062.3,2061.1,1.63622693]
[1772067991429,1.71017271,2062.1,2061.1,1.63622693]
[1772067997236,1.59408751,2061.9,2060.8,1.67959]
[1772067998633,1.59408751,2061.5,2060.3,1.67959]
[1772067998839,1.59408751,2061.3,2060.1,1.67959]
[1772067999137,1.59408751,2061.1,2060.1,1.67959]
[1772067999331,1.59408751,2061.5,2060.1,1.92225]
[1772067999530,1.59408751,2061.5,2060.6,1.67959]
[1772067999737,1.59408751,2061.5,2060.6,1.68520195]
[1772068005834,1.59408751,2061.5,2060.6,0.00561195]
[1772068006034,10.37945256,2061.9,2060.6,0.00561195]
[1772068006035,1.59408751,2061.3,2060.6,0.00561195]
[1772068006338,1.59408751,2061.3,2060.6,1.68520195]
[1772068009445,1.59408751,2061.3,2060.6,0.00561195]
[1772068010749,1.59408751,2061.1,2060.1,1.67959]
[1772068011041,1.59408751,2061.1,2059.9,1.67959]
[1772068011844,1.59408751,2061.1,2059.9,1.68507189]
[1772068012237,1.59408751,2061.5,2060.4,1.67959]
[1772068012945,1.59408751,2061.5,2060.6,1.67959]
[1772068013246,1.59408751,2061.7,2060.6,1.67959]
[1772068016748,1.59408751,2061.7,2060.5,0.24262]
[1772068016947,1.59408751,2061.7,2060.3,7.61538387]
[1772068016948,1.66234271,2061.5,2060.3,1.53099148]
[1772068019149,1.66234271,2061.5,2060.5,1.53099148]
[1772068020549,1.66234271,2061.7,2060.7,1.53099148]
[1772068020749,1.66234271,2062.0,2060.7,1.53099148]
[1772068022155,1.66234271,2062.0,2060.9,1.53099148]
[1772068026554,1.66234271,2061.8,2060.7,1.53099148]
[1772068026757,1.66234271,2061.6,2060.5,1.53099148]
[1772068026960,1.66234271,2061.5,2060.5,1.53099148]
[1772068032055,1.66234271,2061.7,2060.7,1.53099148]
[1772068033461,1.66234271,2061.7,2060.6,0.24261]
[1772068033462,0.00445792,2062.5,2061.5,7.94142452]
[1772068033755,9.93852427,2063.6,2061.9,0.24245]
[1772068033756,1.66234271,2062.8,2061.9,0.24245]
[1772068033953,1.66234271,2062.8,2061.6,11.87945586]
[1772068034157,1.66234271,2062.8,2061.5,0.00567536]
[1772068034456,1.66234271,2062.8,2061.7,0.23007331]
[1772068034760,1.66835845,2062.8,2061.7,0.23007331]
[1772068034965,0.00601574,2062.8,2061.9,0.23007331]
[1772068035564,1.66234271,2063.2,2062.1,0.24207293]
[1772068035756,1.66234271,2063.2,2062.3,0.24207293]
[1772068036254,1.75760789,2063.1,2062.3,0.24207293]
[1772068036453,1.75760789,2063.1,2061.8,5.22584601]
[1772068036651,1.75760789,2062.8,2061.7,0.0014126]
[1772068037260,1.75763469,2062.7,2061.7,0.0014126]
[1772068040058,1.75763469,2062.7,2061.5,0.00567536]
[1772068040564,1.75650503,2062.5,2061.5,0.00567536]
[1772068041165,1.75653528,2062.2,2061.5,0.00567536]
[1772068041565,1.75653528,2062.1,2061.5,0.00567536]
[1772068042858,11.31375458,2062.1,2061.5,0.00567536]
[1772068043063,1.74330763,2062.0,2061.5,0.00567536]
[1772068043664,40.8,2062.8,2060.9,0.24257]
[1772068043665,1.74330763,2061.8,2060.9,0.24257]
[1772068043861,1.74330763,2061.8,2060.6,6.355]
[1772068044063,1.74330763,2061.8,2060.7,0.00385005]
[1772068044866,1.74330763,2061.8,2060.7,0.00451864]
[1772068046570,1.71489151,2061.5,2060.7,0.00451864]
[1772068046870,1.71854409,2061.5,2060.7,0.00451864]
[1772068047064,1.71498582,2061.3,2060.7,0.00451864]
[1772068047971,1.71498582,2061.1,2060.3,0.26977941]
[1772068048369,0.00365258,2061.5,2060.4,0.02596439]
[1772068048571,1.71306313,2061.3,2060.4,0.02596439]
[1772068048771,1.71306313,2061.3,2060.6,0.02596439]
[1772068049173,1.71306313,2061.3,2060.6,0.02937395]
[1772068049678,1.71680655,2061.5,2060.6,0.02937395]
[1772068049978,1.71680655,2061.5,2060.7,0.02023464]
[1772068050375,1.71680655,2061.5,2060.8,6.356]
[1772068050567,6.355,2062.2,2060.9,0.0149473]
[1772068050765,1.71327131,2062.1,2060.9,0.0149473]
[1772068051372,1.71336694,2062.0,2060.9,0.0149473]
[1772068051569,1.71786983,2062.0,2060.9,0.0149473]
[1772068051969,1.71336694,2061.8,2060.9,0.0149473]
[1772068052372,1.71288097,2062.9,2061.6,0.48170666]
[1772068052579,1.71288097,2062.9,2061.9,0.48170666]
[1772068052783,1.71288097,2062.8,2061.9,0.48170666]
[1772068053276,1.71288097,2062.6,2061.9,0.48170666]
[1772068053477,1.7186654,2062.6,2061.9,0.48170666]
[1772068054570,0.00578443,2062.6,2061.9,0.48170666]
[1772068054771,6.356,2063.6,2061.8,0.24247]
[1772068054772,1.71288097,2063.0,2062.1,0.45245619]
[1772068055677,1.71288097,2062.7,2062.1,0.00368993]
[1772068056078,1.71288097,2062.5,2062.1,0.00368993]
[1772068056579,1.71288097,2062.7,2062.1,0.45289483]
[1772068056977,0.00524095,2063.0,2062.4,0.44911191]
[1772068057172,1.71288097,2063.2,2062.6,0.44911191]
[1772068057478,1.71288097,2064.6,2063.9,0.44427857]
[1772068057670,1.71288097,2064.6,2063.5,6.04999986]
[1772068057874,1.71288097,2064.2,2063.3,6.04999986]
[1772068058076,1.7184001,2064.2,2063.3,0.00537352]
[1772068058277,1.71288097,2064.0,2063.3,0.00537352]
[1772068058580,0.00551913,2064.2,2063.8,0.41700162]
[1772068058878,1.71288097,2064.8,2064.1,0.41700162]
[1772068059083,1.71288097,2064.8,2064.1,6.77100162]
[1772068059380,1.71288097,2065.0,2064.2,0.41694597]
[1772068059588,1.71288097,2065.3,2064.4,0.41253809]
[1772068059772,1.71896195,2065.3,2064.4,0.41253809]
[1772068059970,1.71288097,2065.1,2064.4,0.41253809]
[1772068060176,0.00608098,2065.3,2064.6,2.26539516]
[1772068060372,0.00608098,2065.3,2064.7,6.63729664]
[1772068060579,0.00608098,2065.3,2064.7,6.353]
[1772068060782,11.27618125,2065.3,2064.7,6.353]
[1772068061184,9.5572193,2065.2,2064.8,0.28440885]
[1772068061383,0.00608098,2065.3,2064.8,0.28440885]
[1772068061384,0.81495136,2065.1,2064.8,0.13899144]
[1772068061878,11.27010027,2064.9,2064.7,5.451]
[1772068062079,1.71288097,2064.8,2064.7,5.44141155]
[1772068062376,1.71288097,2064.9,2063.9,0.97019074]
[1772068062574,1.71288097,2064.9,2064.1,6.352]
[1772068062770,1.71288097,2064.6,2064.1,6.35582365]
[1772068062972,1.71288097,2064.6,2063.7,1.97632449]
[1772068062973,1.71288097,2064.6,2063.7,6.352]
[1772068063377,1.71288097,2064.4,2063.2,6.351]
[1772068063575,1.71288097,2064.4,2063.2,7.31319404]
[1772068063776,1.71288097,2064.4,2063.3,5.26379105]
[1772068063977,1.71288097,2064.4,2063.4,0.96219404]
[1772068064185,1.71288097,2064.4,2063.6,0.97145835]
[1772068064379,9.5572193,2064.3,2063.7,7.31814312]
[1772068064682,1.71288097,2064.4,2063.7,7.31814312]
[1772068065373,9.5572193,2064.2,2063.7,7.31814312]
[1772068065676,1.71288097,2064.6,2063.8,0.96300521]
[1772068066582,1.71288097,2065.0,2064.1,0.98356597]
[1772068066782,1.71288097,2065.0,2064.2,7.33356597]
[1772068067078,1.71288097,2066.3,2065.0,0.97745345]
[1772068067273,1.71288097,2066.3,2065.4,1.97632449]
[1772068067477,1.71288097,2066.1,2065.4,1.97632449]
[1772068067779,1.71288097,2066.9,2065.5,1.12599442]
[1772068067981,1.71288097,2066.5,2065.6,7.99359575]
[1772068068483,9.48264213,2066.2,2065.7,1.64359575]
[1772068068980,1.71288097,2066.2,2065.6,6.35]
[1772068069281,0.00356313,2066.9,2065.6,7.99359575]
[1772068069282,1.71288097,2066.5,2065.6,7.99359575]
[1772068069584,9.48264213,2066.3,2065.7,1.64359575]
[1772068069883,1.71288097,2066.5,2065.7,1.64359575]
[1772068070079,1.71288097,2066.5,2065.6,7.99359575]
[1772068070382,1.71288097,2066.5,2065.6,6.35]
[1772068070581,9.48264213,2066.0,2065.7,1.64359575]
[1772068070784,1.71288097,2066.3,2065.6,6.35]
[1772068071078,9.48264213,2065.9,2065.6,6.35]
[1772068071279,9.48264213,2065.9,2065.6,7.99359575]
[1772068071478,8.58064213,2065.7,2065.6,7.99359575]
[1772068071785,1.71288097,2066.3,2065.6,6.35]
[1772068072083,8.58064213,2065.8,2065.6,7.99359575]
[1772068072284,8.4298488,2065.8,2065.6,7.99359575]
[1772068072479,1.71288097,2066.5,2065.7,1.64359575]
[1772068073486,8.4298488,2066.1,2065.7,1.64359575]
[1772068073687,1.71288097,2066.5,2065.7,1.64359575]
[1772068074185,1.71288097,2066.1,2065.6,6.35]
[1772068074386,1.71288097,2066.1,2065.6,7.99359575]
[1772068074585,8.4298488,2065.8,2065.6,7.99359575]
[1772068074788,1.71288097,2066.3,2065.6,6.35]
[1772068074984,6.86384815,2066.3,2065.6,6.35]
[1772068075181,1.86024388,2066.2,2065.6,6.35]
[1772068075688,5.15096718,2065.8,2065.6,6.35]
[1772068075885,1.86024388,2066.1,2065.6,6.05596024]
[1772068076085,4.95868582,2065.8,2065.6,6.05596024]
[1772068076390,1.86024388,2066.1,2065.6,6.05596024]
[1772068077185,1.95860856,2066.8,2065.6,6.05596024]
[1772068079389,1.95860856,2066.8,2065.7,0.30377457]
[1772068079582,1.95552347,2067.2,2066.3,0.30377457]
[1772068079782,1.95552347,2067.2,2065.9,0.30377457]
[1772068079983,1.95552347,2067.2,2065.9,6.344]
[1772068080184,1.95059732,2066.9,2065.9,6.344]
[1772068080681,1.95059732,2066.5,2065.9,6.344]
[1772068081283,1.95054186,2066.4,2065.9,6.344]
[1772068082588,1.98996318,2066.1,2065.3,6.343]
[1772068082786,1.98996318,2066.1,2064.9,0.17308371]
[1772068083291,1.98996318,2066.1,2065.0,2.12984153]
[1772068083593,1.99352631,2066.1,2064.8,6.49651704]
[1772068083790,1.98996318,2066.1,2064.9,0.15351704]
[1772068084286,1.98996318,2066.1,2064.8,0.00545627]
[1772068084489,1.98723654,2065.5,2064.3,6.343]
[1772068085085,1.98698951,2065.3,2063.8,6.48183021]
[1772068085496,1.9908804,2065.3,2063.8,6.48681667]
[1772068085792,1.98698951,2064.7,2063.8,0.00498646]
[1772068086190,1.99055264,2064.7,2063.8,0.00498646]
[1772068086490,1.98698951,2064.7,2063.8,0.00498646]
[1772068086696,1.99183541,2064.5,2063.8,0.00498646]
[1772068087195,0.2421,2065.0,2063.8,0.00498646]
[1772068087196,1.9915679,2064.2,2063.8,0.00498646]
[1772068087385,1.9915679,2064.2,2063.4,0.07065704]
[1772068087694,1.9915679,2064.2,2063.3,6.343]
[1772068087889,1.99513103,2064.2,2063.3,6.343]
[1772068088085,1.9915679,2064.2,2062.9,3.95131529]
[1772068088395,1.98011198,2063.9,2062.9,0.00587985]
[1772068088987,8.17564449,2064.5,2062.9,0.08075064]
[1772068088988,1.97990655,2063.8,2062.9,0.08075064]
[1772068089292,1.97990655,2063.8,2063.0,0.07487079]
[1772068089293,1.98394559,2063.8,2063.0,0.07487079]
[1772068089889,0.00403904,2063.8,2063.0,0.07487079]
[1772068090094,1.97990655,2064.1,2063.3,0.10464445]
[1772068090294,1.97990655,2064.1,2063.4,6.345]
[1772068090994,1.98616685,2064.1,2063.4,6.345]
[1772068091390,1.95528425,2063.7,2063.0,6.345]
[1772068091992,0.00356313,2063.5,2063.0,6.345]
[1772068092194,1.96663756,2063.4,2063.0,6.345]
[1772068092491,1.97020069,2063.4,2063.0,6.345]
[1772068092688,1.96663756,2063.4,2063.0,6.345]
[1772068092895,1.96663756,2063.2,2062.3,3.95131529]
[1772068093093,1.96663756,2063.2,2062.2,8.34781132]
[1772068093592,1.9664952,2063.5,2062.6,0.00753493]
[1772068093895,1.9664952,2063.7,2062.9,0.00753493]
[1772068094290,1.96408873,2064.0,2063.1,1.97632449]
[1772068094489,1.96408873,2064.0,2063.2,6.346]
[1772068095796,1.96408873,2064.0,2063.4,1.97632449]
[1772068096099,0.0062603,2064.1,2063.4,2.08222431]
[1772068096692,1.78334805,2065.2,2063.8,1.76886942]
[1772068096901,1.78334805,2064.9,2063.9,6.347]
[1772068097400,1.78334805,2064.6,2063.9,6.347]
[1772068097900,1.90246177,2064.5,2063.9,6.347]
[1772068098102,3.68580982,2064.5,2063.9,6.347]
[1772068098697,1.78334805,2064.3,2063.9,6.347]
[1772068099200,1.90246177,2064.0,2063.9,6.347]
[1772068099496,1.78334805,2064.3,2063.9,6.347]
[1772068099701,1.78334805,2064.5,2063.9,6.347]
[1772068101698,1.78334805,2064.5,2063.6,0.53267899]
[1772068101896,1.78334805,2064.5,2063.5,0.53267899]
[1772068103902,1.78334805,2064.5,2063.4,6.347]
[1772068104104,1.78334805,2064.5,2063.5,3.836]
[1772068104400,1.78334805,2064.5,2063.1,3.99922872]
[1772068104604,1.78334805,2064.5,2063.0,2.46955349]
[1772068104605,1.78334805,2064.5,2063.2,6.347]
[1772068104803,1.78334805,2064.5,2063.2,6.840229]
[1772068105296,1.78334805,2064.5,2063.2,6.347]
[1772068105903,1.85338655,2064.3,2062.9,6.347]
[1772068106300,1.85338655,2064.1,2062.9,6.347]
[1772068107303,1.85338655,2064.1,2063.0,0.44066708]
[1772068107799,1.85338655,2064.1,2062.9,6.347]
[1772068108010,1.85338655,2063.7,2062.6,0.45767208]
[1772068108305,1.85338655,2063.7,2062.8,0.45277067]
[1772068108510,1.85338655,2063.7,2062.9,6.78602289]
[1772068109104,1.85338655,2063.7,2062.9,6.348]
[1772068112803,1.85338655,2063.7,2062.9,6.62994072]
[1772068113007,1.85338655,2063.7,2063.0,0.28194072]
[1772068113507,1.81137327,2063.9,2063.0,0.28194072]
[1772068119013,1.81137327,2063.9,2063.1,4.02702843]
[1772068119214,1.81137327,2063.9,2063.2,4.02763699]
[1772068119414,1.81137327,2063.9,2063.2,3.836]
[1772068119912,1.81137327,2063.9,2063.2,4.01409165]
[1772068122111,1.81137327,2063.9,2063.4,0.15898368]
[1772068122320,1.81130457,2064.4,2063.6,0.15898368]
[1772068123418,1.81535114,2064.6,2063.8,0.13312989]
[1772068124017,1.81535114,2064.6,2063.6,11.28019902]
[1772068124219,1.81535114,2064.6,2063.7,0.13874193]
[1772068124719,1.81535114,2064.6,2063.6,6.349]
[1772068125612,1.81535114,2064.6,2063.6,6.46223609]
[1772068125816,1.81535114,2064.6,2063.7,0.11323609]
[1772068126917,1.81535114,2064.6,2063.7,5.85916772]
[1772068127221,2.05750114,2064.6,2063.4,6.349]
[1772068128620,1.81535114,2064.6,2063.4,6.349]
[1772068128926,1.81535114,2064.6,2063.4,6.44961649]
[1772068130927,1.81535114,2064.6,2063.4,6.349]
[1772068132327,1.81535114,2064.6,2063.3,0.24229]
[1772068132527,1.81535114,2064.6,2063.3,6.59129]
[1772068132731,1.81535114,2064.6,2063.3,6.349]
[1772068132926,1.80783995,2064.4,2063.2,6.04999986]
[1772068133126,1.80783995,2064.4,2063.2,6.349]
[1772068135624,1.80327951,2064.2,2063.0,6.349]
[1772068135824,1.80327951,2064.2,2063.0,10.185]
[1772068136229,1.80327951,2064.2,2063.1,0.02626758]
[1772068136430,1.80327951,2064.2,2063.2,0.01350714]
[1772068138829,1.80327951,2064.2,2063.2,6.04999986]
[1772068139530,1.80327951,2064.2,2063.3,3.836]
[1772068139829,1.80327951,2064.2,2063.4,6.349]
[1772068140226,1.80327951,2064.2,2063.5,0.24227]
[1772068140421,1.80610315,2064.4,2063.6,3.836]
[1772068141229,1.80610315,2064.4,2063.7,3.836]
[1772068141538,0.00433198,2064.6,2063.9,0.24222]
[1772068141831,1.81043513,2064.6,2063.9,6.349]
[1772068142825,1.81043513,2064.6,2063.7,3.836]
[1772068143231,1.81043513,2064.6,2063.2,1.65657803]
[1772068143232,1.80610315,2064.2,2063.2,1.65657803]
[1772068144032,1.80610315,2064.2,2063.4,1.65657803]
[1772068144238,1.80610315,2064.2,2063.6,1.65657803]
[1772068145338,1.80610315,2064.5,2063.6,1.65657803]
[1772068145639,0.00433198,2064.6,2063.6,7.70657789]